[Event "WJCC U20 Girls 2019"]
[Site "New Delhi"]
[Date "2019.10.21"]
[Round "7.25"]
[White "Vlkova, Anezka"]
[Black "Avetisyan, Mariam"]
[Result "0-1"]
[ECO "B11"]
[WhiteElo "1972"]
[BlackElo "2110"]
[Annotator "NA"]
[PlyCount "86"]
[EventDate "2019.10.15"]
[EventType "swiss"]
[EventCountry "IND"]
[SourceTitle "playchess.com"]
[Source "ChessBase"]
[SourceQuality "1"]
[TimeControl "40/5400+30:1800+30"]

1. e4 {[%emt 0:00:00]} c6 {[%emt 0:00:00]} 2. Nc3 {[%emt 0:00:00]} d5 {[%emt 0:00:00]} 3. Nf3 {[%emt 0:00:00]} Bg4 {[%emt 0:00:00]} 4. h3 {[%emt 0:00:00]} Bxf3 {[%emt 0:00:00]} 5. Qxf3 {[%emt 0:00:00]} e6 {[%emt 0:00:00]} 6. d3 {[%emt 0:00:32]} Bb4 {[%emt 0:00:58]} 7. Bd2 {[%emt 0:00:25]} d4 {[%emt 0:01:27]} 8. Nb1 {[%emt 0:00:56]} Bxd2+ {[%emt 0:00:06]} 9. Nxd2 {[%emt 0:00:05]} e5 {[%emt 0:04:40]} 10. Qg3 {[%emt 0:10:50]} Qf6 {[%emt 0:03:15]} 11. Be2 {[%emt 0:00:05]} Ne7 {[%emt 0:01:48]} 12. h4 {[%emt 0:09:57]} Ng6 {[%emt 0:21:35]} 13. Qg5 {[%emt 0:04:19]} Qe7 {[%emt 0:18:20]} 14. Qxe7+ {[%emt 0:07:14]} Kxe7 {[%emt 0:00:09]} 15. g3 {[%emt 0:00:34]} h5 {[%emt 0:06:30]} 16. a4 {[%emt 0:01:22]} b6 {[%emt 0:01:35]} 17. c3 {[%emt 0:02:18]} c5 {[%emt 0:12:17]} 18. cxd4 {[%emt 0:00:42]} cxd4 {[%emt 0:00:16]} 19. b4 {[%emt 0:07:08]} Nd7 {[%emt 0:01:06]} 20. Nc4 {[%emt 0:00:45]} a6 {[%emt 0:02:06]} 21. Kd2 {[%emt 0:00:39]} Raf8 {[%emt 0:06:00]} 22. a5 {[%emt 0:05:15]} b5 {[%emt 0:00:32]} 23. Nb6 {[%emt 0:00:07]} Kd6 {[%emt 0:04:49]} 24. Rhc1 {[%emt 0:02:16]} Ne7 {[%emt 0:01:27]} 25. f4 {[%emt 0:05:20]} Nc6 {[%emt 0:03:04]} 26. Nd5 {[%emt 0:03:24]} Rc8 {[%emt 0:01:38]} 27. Rc2 {[%emt 0:09:39]} Ne7 {[%emt 0:06:11]} 28. Rac1 {[%emt 0:02:02]} Rxc2+ {[%emt 0:00:20]} 29. Rxc2 {[%emt 0:00:05]} Nc6 {[%emt 0:00:48]} 30. Bf1 {[%emt 0:02:22]} Re8 {[%emt 0:00:56]} 31. Be2 {[%emt 0:07:07]} Rh8 {[%emt 0:00:07]} 32. Kc1 {[%emt 0:01:34]} Rh6 {[%emt 0:01:12]} 33. Kb2 {[%emt 0:00:21]} Rg6 {[%emt 0:01:18]} 34. g4 {[%emt 0:02:32]} hxg4 {[%emt 0:00:41]} 35. h5 {[%emt 0:00:16]} Rh6 {[%emt 0:00:06]} 36. Bxg4 {[%emt 0:00:44]} exf4 {[%emt 0:00:23]} 37. Kb3 {[%emt 0:06:46]} g5 {[%emt 0:01:46]} 38. Nb6 {[%emt 0:08:44]} Nde5 {[%emt 0:00:33]} 39. Bc8 {[%emt 0:00:24]} Nxd3 {[%emt 0:00:25]} 40. Nd5 {[%emt 0:01:46]} Rxh5 {[%emt 0:00:42]} 41. Rd2 {[%emt 0:15:03]} Nde5 {[%emt 0:09:40]} 42. Bxa6 {[%emt 0:00:23]} f5 {[%emt 0:02:56]} 43. Nf6 {[%emt 0:01:40]} Rh3+ {[%emt 0:00:09]} 0-1

[Event "WJCC U20 Girls 2019"]
[Site "New Delhi"]
[Date "2019.10.21"]
[Round "7.26"]
[White "Katkov, Michelle"]
[Black "Mirza, Diana"]
[Result "1/2-1/2"]
[ECO "B24"]
[WhiteElo "2106"]
[BlackElo "1986"]
[Annotator "NA"]
[PlyCount "83"]
[EventDate "2019.10.15"]
[EventType "swiss"]
[EventCountry "IND"]
[SourceTitle "playchess.com"]
[Source "ChessBase"]
[SourceQuality "1"]
[TimeControl "40/5400+30:1800+30"]

1. e4 {[%emt 0:00:00]} c5 {[%emt 0:00:00]} 2. Nc3 {[%emt 0:00:00]} Nc6 {[%emt 0:00:00]} 3. Bb5 {[%emt 0:00:00]} Nd4 {[%emt 0:00:04]} 4. Nf3 {[%emt 0:00:05]} a6 {[%emt 0:00:27]} 5. Bd3 {[%emt 0:00:33]} e6 {[%emt 0:04:45]} 6. O-O {[%emt 0:01:35]} Ne7 {[%emt 0:12:30]} 7. b3 {[%emt 0:02:36]} Nec6 {[%emt 0:01:26]} 8. Bb2 {[%emt 0:00:48]} Be7 {[%emt 0:01:47]} 9. Nxd4 {[%emt 0:03:18]} cxd4 {[%emt 0:01:22]} 10. Ne2 {[%emt 0:01:01]} d5 {[%emt 0:06:29]} 11. Qe1 {[%emt 0:10:38]} dxe4 {[%emt 0:01:01]} 12. Bxe4 {[%emt 0:00:11]} Bc5 {[%emt 0:03:38]} 13. Nf4 {[%emt 0:04:56]} O-O {[%emt 0:02:41]} 14. Nd3 {[%emt 0:04:24]} Ba7 {[%emt 0:02:01]} 15. f4 {[%emt 0:08:21]} Bd7 {[%emt 0:12:23]} 16. Kh1 {[%emt 0:04:32]} Qc7 {[%emt 0:04:30]} 17. Qh4 {[%emt 0:03:49]} f5 {[%emt 0:00:27]} 18. Bf3 {[%emt 0:01:56]} Rf6 {[%emt 0:06:28]} 19. Rae1 {[%emt 0:06:58]} Ne7 {[%emt 0:05:49]} 20. Bd1 {[%emt 0:06:47]} Bc6 {[%emt 0:04:17]} 21. Re2 {[%emt 0:11:02]} Rh6 {[%emt 0:06:19]} 22. Qe1 {[%emt 0:01:09]} Be4 {[%emt 0:00:04]} 23. Nb4 {[%emt 0:09:35]} Ng6 {[%emt 0:03:10]} 24. d3 {[%emt 0:05:14]} Bd5 {[%emt 0:17:26]} 25. Nxd5 {[%emt 0:00:18]} exd5 {[%emt 0:00:01]} 26. Re8+ {[%emt 0:01:28]} Rxe8 {[%emt 0:00:01]} 27. Qxe8+ {[%emt 0:00:07]} Nf8 {[%emt 0:00:10]} 28. Bf3 {[%emt 0:01:36]} Qd6 {[%emt 0:03:18]} 29. Re1 {[%emt 0:00:58]} Bb8 {[%emt 0:01:17]} 30. g3 {[%emt 0:01:19]} Ba7 {[%emt 0:00:36]} 31. Qa8 {[%emt 0:05:00]} Bc5 {[%emt 0:00:24]} 32. Re5 {[%emt 0:00:51]} Rf6 {[%emt 0:00:33]} 33. Rxd5 {[%emt 0:00:45]} Qc6 {[%emt 0:00:23]} 34. Kg2 {[%emt 0:00:51]} Re6 {[%emt 0:00:20]} 35. Re5 {[%emt 0:00:15]} Rxe5 {[%emt 0:00:44]} 36. Bxc6 {[%emt 0:00:08]} Re2+ {[%emt 0:00:01]} 37. Kf3 {[%emt 0:02:12]} Re3+ {[%emt 0:00:07]} 38. Kf2 {[%emt 0:00:48]} bxc6 {[%emt 0:00:03]} 39. Qxc6 {[%emt 0:00:24]} Ne6 {[%emt 0:00:29]} 40. Qe8+ {[%emt 0:00:37]} Nf8 {[%emt 0:00:05]} 41. Qc8 {[%emt 0:30:05]} Bb6 {[%emt 0:30:21]} 42. Ba3 {[%emt 0:00:12]} 1/2-1/2

[Event "WJCC U20 Girls 2019"]
[Site "New Delhi"]
[Date "2019.10.21"]
[Round "7.27"]
[White "Aouachria, Marwa"]
[Black "Ferkova, Dominika"]
[Result "0-1"]
[ECO "B13"]
[WhiteElo "1839"]
[BlackElo "2096"]
[Annotator "NA RC"]
[PlyCount "128"]
[EventDate "2019.10.15"]
[EventType "swiss"]
[EventCountry "IND"]
[SourceTitle "playchess.com"]
[Source "ChessBase"]
[SourceQuality "1"]
[TimeControl "40/5400+30:1800+30"]

1. e4 {[%emt 0:00:00]} c6 {[%emt 0:00:00]} 2. d4 {[%emt 0:00:00]} d5 {[%emt 0:00:07]} 3. exd5 cxd5 {[%emt 0:00:08]} 4. c4 {[%emt 0:00:00]} Nf6 {[%emt 0:00:15]} 5. Nc3 {[%emt 0:00:00]} Nc6 {[%emt 0:00:34]} 6. Bg5 {[%emt 0:02:30]} dxc4 {[%emt 0:08:41]} 7. Bxc4 {[%emt 0:06:08]} e6 {[%emt 0:15:34]} 8. Nf3 {[%emt 0:02:32]} Be7 {[%emt 0:01:07]} 9. a3 {[%emt 0:01:41]} O-O {[%emt 0:00:40]} 10. O-O {[%emt 0:00:06]} h6 {[%emt 0:09:49]} 11. Bh4 {[%emt 0:03:41]} Nd5 {[%emt 0:00:53]} 12. Bxe7 {[%emt 0:03:25]} Ncxe7 {[%emt 0:03:59]} 13. Ne2 {[%emt 0:07:12]} b6 {[%emt 0:03:01]} 14. Qd3 {[%emt 0:02:32]} Bb7 {[%emt 0:02:42]} 15. Ne5 {[%emt 0:06:21]} Nf5 {[%emt 0:04:59]} 16. Rfd1 {[%emt 0:16:30]} Qg5 {[%emt 0:06:40]} 17. Nf3 {[%emt 0:00:28]} Qf6 {[%emt 0:01:10]} 18. Rac1 {[%emt 0:03:18]} a6 {[%emt 0:05:51]} 19. Ba2 {[%emt 0:03:44]} Nh4 {[%emt 0:07:17]} 20. Nxh4 {[%emt 0:01:34]} Qxh4 {[%emt 0:00:07]} 21. Qg3 {[%emt 0:09:00]} Qxg3 {[%emt 0:02:28]} 22. hxg3 {[%emt 0:00:08]} Rac8 {[%emt 0:02:50]} 23. Kf1 {[%emt 0:02:47]} Rfd8 {[%emt 0:03:40]} 24. Ke1 {[%emt 0:12:26]} b5 {[%emt 0:04:46]} 25. Rc5 {[%emt 0:05:58]} Nb6 {[%emt 0:01:01]} 26. f3 {[%emt 0:05:49]} Nc4 {[%emt 0:02:46]} 27. Bxc4 {[%emt 0:00:19]} bxc4 {[%emt 0:00:06]} 28. Rxc8 {[%emt 0:01:55]} Rxc8 {[%emt 0:00:02]} 29. Nc3 {[%emt 0:00:24]} Bd5 {[%emt 0:00:12]} 30. Rc1 {[%emt 0:02:55]} Rb8 {[%emt 0:01:04]} 31. Rc2 {[%emt 0:00:21]} f6 {[%emt 0:01:16]} 32. Na4 {[%emt 0:00:45]} Kf7 {[%emt 0:00:40]} 33. Nc5 {[%emt 0:00:14]} a5 {[%emt 0:00:29]} 34. Kd2 {[%emt 0:01:30]} g5 {[%emt 0:02:21]} 35. g4 {[%emt 0:00:26]} h5 {[%emt 0:02:24]} 36. gxh5 {[%emt 0:00:32]} Rh8 {[%emt 0:00:02]} 37. Kc3 {[%emt 0:00:13]} Rxh5 {[%emt 0:00:23]} 38. Na4 {[%emt 0:00:31]} g4 {[%emt 0:00:58]} 39. fxg4 {[%emt 0:00:48]} Rg5 40. Nb6 {[%emt 0:00:43]} Rxg4 {[%emt 0:00:30]} 41. Rf2 {[%emt 0:30:30]} Rg3+ {[%emt 0:34:05]} 42. Kc2 {[%emt 0:00:13]} Be4+ {[%emt 0:01:06]} 43. Kc1 {[%emt 0:00:20]} c3 {[%emt 0:00:52]} 44. Nc4 {[%emt 0:00:00]} Bxg2 {[%emt 0:00:00]} 45. Nxa5 {[%emt 0:00:00]} Be4 {[%emt 0:00:00]} 46. bxc3 {[%emt 0:00:00]} Rxc3+ {[%emt 0:00:00]} 47. Kb2 {[%emt 0:00:00]} Rd3 {[%emt 0:00:00]} 48. Rf4 {[%emt 0:00:00]} Bd5 {[%emt 0:00:00]} 49. Rf1 {[%emt 0:00:00]} f5 {[%emt 0:00:00]} 50. Ra1 {[%emt 0:00:00]} Kf6 {[%emt 0:00:00]} 51. a4 {[%emt 0:00:00]} f4 {[%emt 0:00:00]} 52. Kc2 {[%emt 0:00:00]} Re3 {[%emt 0:00:00]} 53. Kd2 {[%emt 0:00:00]} Kf5 {[%emt 0:00:00]} 54. Rb1 {[%emt 0:00:00]} Ke4 {[%emt 0:00:00]} 55. Nb7 {[%emt 0:01:59]} Rd3+ {[%emt 0:00:14]} 56. Ke2 {[%emt 0:00:42]} Bxb7 {[%emt 0:00:06]} 57. Rxb7 {[%emt 0:00:07]} Rxd4 {[%emt 0:00:04]} 58. a5 {[%emt 0:00:27]} Ra4 {[%emt 0:00:28]} 59. Rb6 {[%emt 0:00:14]} e5 {[%emt 0:00:53]} 60. a6 {[%emt 0:00:08]} Ra2+ {[%emt 0:00:19]} 61. Kf1 {[%emt 0:00:11]} f3 {[%emt 0:02:02]} 62. Rb4+ {[%emt 0:02:07]} Ke3 {[%emt 0:00:33]} 63. Rb3+ {[%emt 0:00:25]} Kf4 {[%emt 0:00:06]} 64. Rb4+ {[%emt 0:00:53]} e4 {[%emt 0:00:06]} 0-1

[Event "WJCC U20 Girls 2019"]
[Site "New Delhi"]
[Date "2019.10.21"]
[Round "7.28"]
[White "Onur, Cigdem"]
[Black "Bauyrzhan, Arnash"]
[Result "0-1"]
[ECO "B40"]
[WhiteElo "1913"]
[BlackElo "2075"]
[Annotator "NA RC"]
[PlyCount "68"]
[EventDate "2019.10.15"]
[EventType "swiss"]
[EventCountry "IND"]
[SourceTitle "playchess.com"]
[Source "ChessBase"]
[SourceQuality "1"]
[TimeControl "40/5400+30:1800+30"]

1. e4 {[%emt 0:00:00]} c5 {[%emt 0:00:00]} 2. Nf3 {[%emt 0:00:00]} e6 {[%emt 0:00:08]} 3. c3 {[%emt 0:00:00]} Nc6 {[%emt 0:02:46]} 4. d4 {[%emt 0:10:46]} d5 {[%emt 0:00:27]} 5. exd5 {[%emt 0:08:32]} exd5 {[%emt 0:01:28]} 6. Bb5 {[%emt 0:02:12]} Bd6 {[%emt 0:04:00]} 7. dxc5 {[%emt 0:11:33]} Bxc5 {[%emt 0:00:10]} 8. O-O {[%emt 0:01:20]} Nge7 {[%emt 0:01:13]} 9. Bg5 {[%emt 0:20:12]} O-O {[%emt 0:00:59]} 10. Nbd2 {[%emt 0:10:03]} Qb6 {[%emt 0:09:04]} 11. Qa4 {[%emt 0:03:51]} Bf5 {[%emt 0:05:58]} 12. Nb3 {[%emt 0:02:08]} Bd6 {[%emt 0:03:11]} 13. Rad1 {[%emt 0:03:29]} Bc2 {[%emt 0:04:02]} 14. Rd2 {[%emt 0:02:14]} Be4 {[%emt 0:00:21]} 15. Nbd4 {[%emt 0:04:05]} Nxd4 {[%emt 0:03:30]} 16. Nxd4 {[%emt 0:00:31]} Qc7 {[%emt 0:02:11]} 17. g3 {[%emt 0:07:38]} Ng6 {[%emt 0:02:28]} 18. f3 {[%emt 0:05:19]} a6 {[%emt 0:00:34]} 19. fxe4 {[%emt 0:02:29]} axb5 {[%emt 0:00:09]} 20. Qb3 {[%emt 0:02:30]} dxe4 {[%emt 0:02:01]} 21. Nxb5 {[%emt 0:00:39]} Qc5+ {[%emt 0:00:27]} 22. Kh1 {[%emt 0:00:46]} Bxg3 {[%emt 0:05:43]} 23. Rd5 {[%emt 0:00:29]} Qc8 {[%emt 0:05:45]} 24. Rdf5 {[%emt 0:00:30]} Be5 {[%emt 0:07:14]} 25. Rxf7 {[%emt 0:00:27]} Rxf7 {[%emt 0:00:25]} 26. Qxf7+ {[%emt 0:00:17]} Kh8 {[%emt 0:00:05]} 27. Nd4 {[%emt 0:00:29]} Qh3 {[%emt 0:01:17]} 28. Qf2 {[%emt 0:00:11]} h6 {[%emt 0:01:31]} 29. Bc1 {[%emt 0:01:06]} Rf8 {[%emt 0:00:18]} 30. Qxf8+ {[%emt 0:00:41]} Nxf8 {[%emt 0:00:06]} 31. Rxf8+ {[%emt 0:00:03]} Kh7 {[%emt 0:00:07]} 32. Rf2 {[%emt 0:00:33]} Bxh2 {[%emt 0:00:37]} 33. Rg2 {[%emt 0:00:41]} Bf4+ {[%emt 0:00:21]} 34. Kg1 {[%emt 0:00:05]} Bxc1 {[%emt 0:00:15]} 0-1

[Event "WJCC U20 Girls 2019"]
[Site "New Delhi"]
[Date "2019.10.21"]
[Round "7.32"]
[White "Nastase, Andreea-Cristina"]
[Black "Meghna, C H"]
[Result "1-0"]
[ECO "D52"]
[WhiteElo "2077"]
[BlackElo "1956"]
[Annotator "NA"]
[PlyCount "113"]
[EventDate "2019.10.15"]
[EventType "swiss"]
[EventCountry "IND"]
[SourceTitle "playchess.com"]
[Source "ChessBase"]
[SourceQuality "1"]
[TimeControl "40/5400+30:1800+30"]

1. d4 d5 2. c4 c6 3. Nf3 Nf6 4. Nc3 e6 5. Bg5 Nbd7 6. e3 Qa5 7. cxd5 Nxd5 8. Qb3 Bb4 9. Rc1 O-O 10. Bd3 e5 11. O-O Bxc3 12. bxc3 h6 13. Bh4 Re8 14. Bb1 e4 15. Nd2 N5f6 16. Nc4 Qh5 17. Bg3 Nf8 18. Nd6 Re7 19. Nxc8 Rxc8 20. Qa3 Ng6 21. Qxa7 Nh4 22. Qc5 Nf5 23. Rce1 Nxg3 24. Qxe7 Nf5 25. Qc5 Qg6 26. f3 Nd7 27. Qc4 Nd6 28. Qe2 f5 29. fxe4 fxe4 30. Bc2 Ra8 31. Rf4 Nf6 32. Bb3+ Kh7 33. c4 Ra5 34. c5 Nb5 35. Be6 Kh8 36. Ref1 Nc7 37. Rg4 Qe8 38. Rxf6 Nxe6 39. Rf1 Nc7 40. Rgf4 Qe6 41. Qg4 Rxa2 42. Qxe6 Nxe6 43. Rxe4 Nc7 44. h3 Kg8 45. Rf2 Ra3 46. Re7 Nd5 47. Re8+ Kh7 48. Re2 Kg6 49. Kf2 Ra1 50. Rb2 Nf6 51. Re6 Kf7 52. Rxf6+ gxf6 53. Rxb7+ Ke6 54. Rc7 Ra6 55. Kf3 Kf5 56. g4+ Kg5 57. Rg7+ 1-0

[Event "WJCC U20 Girls 2019"]
[Site "New Delhi"]
[Date "2019.10.21"]
[Round "7.33"]
[White "Rindhiya V"]
[Black "Ortiz Verdezoto, Anahi"]
[Result "1-0"]
[ECO "C54"]
[WhiteElo "1817"]
[BlackElo "2055"]
[Annotator "NA RC"]
[PlyCount "89"]
[EventDate "2019.10.15"]
[EventType "swiss"]
[EventCountry "IND"]
[SourceTitle "playchess.com"]
[Source "ChessBase"]
[SourceQuality "1"]
[TimeControl "40/5400+30:1800+30"]

1. e4 {[%emt 0:00:00]} e5 {[%emt 0:00:00]} 2. Nf3 {[%emt 0:00:00]} Nc6 {[%emt 0:00:04]} 3. Bc4 {[%emt 0:00:00]} Bc5 {[%emt 0:00:17]} 4. c3 {[%emt 0:00:00]} Nf6 {[%emt 0:00:04]} 5. d4 {[%emt 0:00:00]} exd4 {[%emt 0:00:04]} 6. cxd4 {[%emt 0:00:00]} Bb4+ {[%emt 0:00:03]} 7. Bd2 {[%emt 0:00:05]} Bxd2+ {[%emt 0:00:05]} 8. Nbxd2 {[%emt 0:00:05]} d5 {[%emt 0:00:08]} 9. exd5 {[%emt 0:00:04]} Nxd5 {[%emt 0:00:01]} 10. Qb3 {[%emt 0:00:07]} Nce7 {[%emt 0:00:04]} 11. O-O {[%emt 0:00:10]} O-O {[%emt 0:00:04]} 12. Rfe1 {[%emt 0:00:06]} c6 {[%emt 0:00:06]} 13. Ne4 {[%emt 0:00:43]} Rb8 {[%emt 0:00:18]} 14. Ne5 {[%emt 0:00:32]} Bf5 {[%emt 0:03:41]} 15. Rad1 {[%emt 0:20:42]} a5 {[%emt 0:03:26]} 16. Qf3 {[%emt 0:09:10]} Bg6 {[%emt 0:12:04]} 17. Nc5 {[%emt 0:06:50]} Nb6 {[%emt 0:01:56]} 18. Nxg6 {[%emt 0:03:22]} hxg6 {[%emt 0:03:49]} 19. Ne6 {[%emt 0:05:41]} Qd6 {[%emt 0:05:42]} 20. Nxf8 {[%emt 0:00:26]} Nxc4 {[%emt 0:03:18]} 21. Qe2 {[%emt 0:00:13]} Nxb2 {[%emt 0:01:50]} 22. Nxg6 {[%emt 0:12:20]} Qxg6 {[%emt 0:00:03]} 23. Qxb2 {[%emt 0:00:08]} Nd5 {[%emt 0:00:06]} 24. Qa3 {[%emt 0:01:13]} Ra8 {[%emt 0:00:19]} 25. Qg3 {[%emt 0:03:19]} Qxg3 {[%emt 0:06:21]} 26. hxg3 {[%emt 0:00:15]} b5 {[%emt 0:00:39]} 27. Rc1 {[%emt 0:02:04]} Rc8 {[%emt 0:15:32]} 28. Re5 {[%emt 0:03:45]} Nb4 {[%emt 0:00:17]} 29. Rxb5 {[%emt 0:01:44]} Nxa2 {[%emt 0:01:03]} 30. Rcc5 {[%emt 0:00:58]} Nb4 {[%emt 0:03:59]} 31. Rxa5 {[%emt 0:00:23]} Re8 {[%emt 0:00:05]} 32. f3 {[%emt 0:04:18]} Re1+ {[%emt 0:01:04]} 33. Kh2 {[%emt 0:00:01]} Re6 {[%emt 0:03:43]} 34. Ra8+ {[%emt 0:01:11]} Kh7 {[%emt 0:00:02]} 35. Rc8 {[%emt 0:00:10]} Re7 {[%emt 0:01:21]} 36. Ra8 {[%emt 0:03:01]} Rb7 {[%emt 0:02:08]} 37. Ra3 {[%emt 0:02:46]} Rd7 {[%emt 0:05:14]} 38. Rc4 {[%emt 0:01:09]} Nd5 {[%emt 0:00:02]} 39. Ra6 {[%emt 0:00:58]} Ne7 {[%emt 0:00:11]} 40. g4 {[%emt 0:00:47]} g6 {[%emt 0:00:59]} 41. Rca4 {[%emt 0:30:28]} Rd6 {[%emt 0:31:56]} 42. Ra7 {[%emt 0:00:12]} Re6 {[%emt 0:00:02]} 43. Rc7 {[%emt 0:00:13]} Kg7 {[%emt 0:01:35]} 44. Raa7 {[%emt 0:00:06]} Kf8 {[%emt 0:00:06]} 45. Ra8+ {[%emt 0:00:06]} 1-0

[Event "WJCC U20 Girls 2019"]
[Site "New Delhi"]
[Date "2019.10.21"]
[Round "7.34"]
[White "Bhagyashree Patil"]
[Black "Tamarozi, Isabelle"]
[Result "1-0"]
[ECO "B36"]
[WhiteElo "1802"]
[BlackElo "2029"]
[Annotator "NA RC"]
[PlyCount "73"]
[EventDate "2019.10.15"]
[EventType "swiss"]
[EventCountry "IND"]
[SourceTitle "playchess.com"]
[Source "ChessBase"]
[SourceQuality "1"]
[TimeControl "40/5400+30:1800+30"]

1. e4 {[%emt 0:00:00]} c5 {[%emt 0:00:00]} 2. Nf3 {[%emt 0:00:00]} Nc6 {[%emt 0:00:31]} 3. d4 {[%emt 0:00:00]} cxd4 {[%emt 0:00:23]} 4. Nxd4 {[%emt 0:00:00]} g6 {[%emt 0:00:23]} 5. c4 {[%emt 0:02:00]} d6 {[%emt 0:00:30]} 6. Nc3 {[%emt 0:01:04]} Nf6 {[%emt 0:00:34]} 7. Be2 {[%emt 0:00:35]} Nxd4 {[%emt 0:00:51]} 8. Qxd4 {[%emt 0:00:08]} Bg7 {[%emt 0:00:20]} 9. Qd3 {[%emt 0:03:40]} a5 {[%emt 0:04:43]} 10. h3 {[%emt 0:02:32]} O-O {[%emt 0:09:43]} 11. O-O {[%emt 0:00:42]} Be6 {[%emt 0:04:19]} 12. Be3 {[%emt 0:05:37]} a4 {[%emt 0:03:03]} 13. Rab1 {[%emt 0:02:51]} Nd7 {[%emt 0:04:33]} 14. Nd5 {[%emt 0:02:27]} Nc5 {[%emt 0:05:43]} 15. Qc2 {[%emt 0:04:30]} f5 {[%emt 0:01:44]} 16. Bf3 {[%emt 0:03:41]} Rf7 {[%emt 0:03:05]} 17. Bxc5 {[%emt 0:03:00]} fxe4 {[%emt 0:08:34]} 18. Bb6 {[%emt 0:19:11]} Qd7 {[%emt 0:08:38]} 19. Bxe4 {[%emt 0:04:03]} Raf8 {[%emt 0:02:57]} 20. Qd3 {[%emt 0:00:37]} Be5 {[%emt 0:03:29]} 21. Bd4 {[%emt 0:06:42]} Bxd4 {[%emt 0:02:32]} 22. Qxd4 {[%emt 0:00:09]} Bf5 {[%emt 0:00:16]} 23. Rbe1 {[%emt 0:01:28]} Rg7 {[%emt 0:01:34]} 24. Bxf5 {[%emt 0:01:33]} Rxf5 {[%emt 0:01:54]} 25. Qxg7+ {[%emt 0:02:16]} Kxg7 {[%emt 0:00:10]} 26. Rxe7+ {[%emt 0:00:03]} Qxe7 {[%emt 0:00:08]} 27. Nxe7 {[%emt 0:00:03]} Rc5 {[%emt 0:00:27]} 28. Rc1 {[%emt 0:01:08]} Re5 {[%emt 0:02:11]} 29. Nd5 {[%emt 0:00:15]} Re2 {[%emt 0:00:13]} 30. Rb1 {[%emt 0:00:11]} Kf8 {[%emt 0:01:46]} 31. Kf1 {[%emt 0:00:10]} Rd2 {[%emt 0:00:45]} 32. Ke1 {[%emt 0:00:11]} Rd4 {[%emt 0:00:37]} 33. Ne3 {[%emt 0:00:07]} Ke7 {[%emt 0:01:33]} 34. b3 {[%emt 0:00:20]} b5 {[%emt 0:01:37]} 35. cxb5 {[%emt 0:00:34]} Kd7 {[%emt 0:00:51]} 36. bxa4 {[%emt 0:00:12]} Rxa4 {[%emt 0:00:08]} 37. b6 {[%emt 0:00:09]} 1-0

[Event "WJCC U20 Girls 2019"]
[Site "New Delhi"]
[Date "2019.10.21"]
[Round "7.35"]
[White "Chandreyee, Hajra"]
[Black "Eesha Ajay Sarda"]
[Result "1/2-1/2"]
[ECO "B43"]
[WhiteElo "2024"]
[BlackElo "1744"]
[Annotator "NA RC"]
[PlyCount "131"]
[EventDate "2019.10.15"]
[EventType "swiss"]
[EventCountry "IND"]
[SourceTitle "playchess.com"]
[Source "ChessBase"]
[SourceQuality "1"]
[TimeControl "40/5400+30:1800+30"]

1. e4 {[%emt 0:00:00]} c5 {[%emt 0:00:00]} 2. Nf3 {[%emt 0:00:00]} e6 {[%emt 0:00:00]} 3. d4 {[%emt 0:00:00]} cxd4 {[%emt 0:00:02]} 4. Nxd4 {[%emt 0:00:00]} a6 {[%emt 0:00:29]} 5. Nc3 {[%emt 0:00:36]} Qc7 {[%emt 0:00:30]} 6. Be2 {[%emt 0:02:13]} Nf6 {[%emt 0:00:34]} 7. O-O {[%emt 0:00:34]} Be7 {[%emt 0:00:51]} 8. Be3 {[%emt 0:00:19]} d6 {[%emt 0:00:16]} 9. f4 {[%emt 0:00:10]} b5 {[%emt 0:01:24]} 10. a3 {[%emt 0:00:30]} Bb7 {[%emt 0:00:05]} 11. Bf3 {[%emt 0:00:38]} Nbd7 {[%emt 0:00:51]} 12. Nb3 {[%emt 0:03:36]} Rc8 {[%emt 0:16:24]} 13. Qe1 {[%emt 0:04:03]} O-O {[%emt 0:06:22]} 14. Qg3 {[%emt 0:02:44]} d5 {[%emt 0:04:32]} 15. exd5 {[%emt 0:02:41]} Nxd5 {[%emt 0:02:37]} 16. Nxd5 {[%emt 0:03:35]} Bxd5 {[%emt 0:01:51]} 17. Bxd5 {[%emt 0:00:30]} exd5 {[%emt 0:00:09]} 18. c3 {[%emt 0:02:43]} Nc5 {[%emt 0:08:12]} 19. Bd4 {[%emt 0:04:33]} Ne6 {[%emt 0:11:49]} 20. Be3 {[%emt 0:01:52]} Bf6 {[%emt 0:09:27]} 21. Rad1 {[%emt 0:01:03]} Rfd8 {[%emt 0:02:59]} 22. Qg4 {[%emt 0:04:27]} Qc4 {[%emt 0:04:04]} 23. Nd4 {[%emt 0:02:30]} Nxd4 {[%emt 0:01:34]} 24. Bxd4 {[%emt 0:00:10]} Rc6 {[%emt 0:01:15]} 25. Rfe1 {[%emt 0:02:40]} Bxd4+ {[%emt 0:07:10]} 26. Rxd4 {[%emt 0:00:20]} Qc5 {[%emt 0:00:17]} 27. Qg5 {[%emt 0:02:58]} Rf6 {[%emt 0:03:39]} 28. g3 {[%emt 0:04:54]} h6 {[%emt 0:01:01]} 29. Qg4 {[%emt 0:02:53]} Qb6 {[%emt 0:03:55]} 30. Kg2 {[%emt 0:03:03]} Re6 {[%emt 0:04:30]} 31. Rxe6 {[%emt 0:01:43]} fxe6 {[%emt 0:00:25]} 32. Qg6 {[%emt 0:03:33]} Rf8 {[%emt 0:00:22]} 33. Qh5 {[%emt 0:03:54]} Qd6 {[%emt 0:01:50]} 34. Qf3 {[%emt 0:04:16]} Rf7 {[%emt 0:04:34]} 35. Rd2 {[%emt 0:03:30]} Kf8 {[%emt 0:01:57]} 36. Qe3 {[%emt 0:00:33]} Qc6 {[%emt 0:01:00]} 37. Kg1 {[%emt 0:01:10]} Rc7 {[%emt 0:00:09]} 38. Re2 {[%emt 0:00:33]} Kf7 {[%emt 0:00:47]} 39. Rf2 {[%emt 0:02:37]} Kg8 {[%emt 0:00:18]} 40. f5 {[%emt 0:02:24]} exf5 {[%emt 0:00:56]} 41. Rxf5 {[%emt 0:30:16]} Rf7 {[%emt 0:03:57]} 42. Re5 {[%emt 0:00:00]} Qc4 {[%emt 0:11:11]} 43. Re8+ {[%emt 0:00:00]} Kh7 {[%emt 0:00:04]} 44. Qe2 {[%emt 0:00:00]} Qxe2 {[%emt 0:06:27]} 45. Re6 Qe3+ 46. Rxe3 {[%emt 0:00:00]} Kg6 {[%emt 0:00:37]} 47. Re6+ {[%emt 0:00:00]} Rf6 {[%emt 0:03:37]} 48. Rxf6+ {[%emt 0:00:00]} Kxf6 {[%emt 0:00:35]} 49. Kf2 {[%emt 0:00:00]} Kf5 {[%emt 0:00:55]} 50. Kf3 {[%emt 0:00:00]} h5 {[%emt 0:01:44]} 51. h3 {[%emt 0:00:00]} g5 {[%emt 0:02:06]} 52. Ke3 {[%emt 0:00:00]} Ke5 {[%emt 0:03:21]} 53. b3 {[%emt 0:00:00]} a5 {[%emt 0:01:32]} 54. Kd3 {[%emt 0:00:00]} h4 {[%emt 0:00:28]} 55. gxh4 {[%emt 0:00:00]} gxh4 {[%emt 0:00:05]} 56. Ke3 {[%emt 0:00:00]} Kf5 {[%emt 0:01:07]} 57. Kd4 {[%emt 0:20:40]} Kf4 {[%emt 0:00:07]} 58. Kxd5 {[%emt 0:00:43]} Kg3 {[%emt 0:00:06]} 59. Ke4 {[%emt 0:00:37]} Kxh3 {[%emt 0:01:05]} 60. Kf3 {[%emt 0:00:05]} Kh2 {[%emt 0:00:11]} 61. Kf2 {[%emt 0:00:40]} h3 {[%emt 0:00:36]} 62. c4 {[%emt 0:02:20]} bxc4 {[%emt 0:01:23]} 63. bxc4 {[%emt 0:00:06]} Kh1 {[%emt 0:00:16]} 64. c5 {[%emt 0:01:04]} h2 {[%emt 0:00:08]} 65. c6 {[%emt 0:00:03]} a4 {[%emt 0:00:12]} 66. Kf1 {[%emt 0:00:41]} 1/2-1/2